[Event "Titled Tuesday Blitz June 21 Late 2022"]
[White "De La Colina, Nicolas"]
[Black "Maltsevskaya, Aleksandra"]
[WhiteFideId "30946921"]
[BlackFideId "24174041"]
[WhiteElo "2046"]
[BlackElo "2243"]
[Result "0-1"]
[Round "11"]
[TimeControl "180+1"]
[Date "2022.06.21"]
[WhiteClock "0:00:14"]
[BlackClock "0:00:14"]

1. e4 {[%clk 0:03:00]}  c5 {[%clk 0:02:51]} 2. c3 {[%clk 0:02:58]}  e6 {[%clk 0:02:51]} 3. Nf3 {[%clk 0:02:57]}  d5 {[%clk 0:02:52]} 4. exd5 {[%clk 0:02:58]}  exd5 {[%clk 0:02:52]} 5. d4 {[%clk 0:02:59]}  Bd6 {[%clk 0:02:53]} 6. Bb5+ {[%clk 0:02:57]}  Nc6 {[%clk 0:02:53]} 7. O-O {[%clk 0:02:56]}  Ne7 {[%clk 0:02:53]} 8. dxc5 {[%clk 0:02:56]}  Bxc5 {[%clk 0:02:53]} 9. Nbd2 {[%clk 0:02:57]}  a6 {[%clk 0:02:53]} 10. Be2 {[%clk 0:02:45]}  O-O {[%clk 0:02:52]} 11. Nb3 {[%clk 0:02:46]}  Bb6 {[%clk 0:02:48]} 12. Bf4 {[%clk 0:02:40]}  Ng6 {[%clk 0:02:42]} 13. Bg3 {[%clk 0:02:39]}  Be6 {[%clk 0:02:37]} 14. Nbd4 {[%clk 0:02:39]}  h6 {[%clk 0:02:30]} 15. Qd3 {[%clk 0:02:33]}  Qf6 {[%clk 0:02:13]} 16. Rfe1 {[%clk 0:02:00]}  Nf4 {[%clk 0:02:05]} 17. Qd2 {[%clk 0:01:58]}  Nxe2+ {[%clk 0:02:04]} 18. Rxe2 {[%clk 0:01:59]}  Bg4 {[%clk 0:02:04]} 19. Re3 {[%clk 0:01:58]}  Nxd4 {[%clk 0:02:02]} 20. Nxd4 {[%clk 0:01:59]}  Rfe8 {[%clk 0:02:01]} 21. Rae1 {[%clk 0:01:56]}  Rxe3 {[%clk 0:02:00]} 22. Rxe3 {[%clk 0:01:54]}  Bd7 {[%clk 0:02:00]} 23. Be5 {[%clk 0:01:40]}  Qg5 {[%clk 0:01:54]} 24. Qe1 {[%clk 0:01:29]}  Re8 {[%clk 0:01:44]} 25. Nf3 {[%clk 0:01:27]}  Qf5 {[%clk 0:01:40]} 26. Bd4 {[%clk 0:01:18]}  Rxe3 {[%clk 0:01:37]} 27. Bxe3 {[%clk 0:01:18]}  Bxe3 {[%clk 0:01:36]} 28. fxe3 {[%clk 0:01:18]}  Qc2 {[%clk 0:01:33]} 29. Qa1 {[%clk 0:00:53]}  Qe2 {[%clk 0:01:30]} 30. Qc1 {[%clk 0:00:50]}  Bh3 {[%clk 0:01:18]} 31. Qd2 {[%clk 0:00:36]}  Qxd2 {[%clk 0:01:12]} 32. Nxd2 {[%clk 0:00:37]}  Bf5 {[%clk 0:01:10]} 33. Nf3 {[%clk 0:00:31]}  Kf8 {[%clk 0:01:10]} 34. Kf2 {[%clk 0:00:30]}  Ke7 {[%clk 0:01:10]} 35. Nd4 {[%clk 0:00:30]}  Bd7 {[%clk 0:01:10]} 36. g3 {[%clk 0:00:24]}  Kd6 {[%clk 0:01:10]} 37. Kf3 {[%clk 0:00:21]}  b5 {[%clk 0:01:07]} 38. a3 {[%clk 0:00:20]}  a5 {[%clk 0:01:04]} 39. e4 {[%clk 0:00:20]}  Ke5 {[%clk 0:01:00]} 40. exd5 {[%clk 0:00:12]}  Kxd5 {[%clk 0:01:01]} 41. Ne2 {[%clk 0:00:09]}  Kc4 {[%clk 0:00:59]} 42. Nc1 {[%clk 0:00:09]}  f5 {[%clk 0:00:47]} 43. Kf4 {[%clk 0:00:07]}  Kd5 {[%clk 0:00:47]} 44. Ke3 {[%clk 0:00:07]}  g5 {[%clk 0:00:47]} 45. Nd3 {[%clk 0:00:05]}  Be8 {[%clk 0:00:45]} 46. b3 {[%clk 0:00:05]}  Bf7 {[%clk 0:00:43]} 47. Nb2 {[%clk 0:00:04]}  Kc6 {[%clk 0:00:41]} 48. c4 {[%clk 0:00:03]}  bxc4 {[%clk 0:00:40]} 49. bxc4 {[%clk 0:00:03]}  Kc5 {[%clk 0:00:38]} 50. Kd3 {[%clk 0:00:04]}  f4 {[%clk 0:00:39]} 51. gxf4 {[%clk 0:00:05]}  gxf4 {[%clk 0:00:39]} 52. Kc3 {[%clk 0:00:05]}  Bg6 {[%clk 0:00:33]} 53. Nd1 {[%clk 0:00:04]}  f3 {[%clk 0:00:31]} 54. Nf2 {[%clk 0:00:04]}  a4 {[%clk 0:00:29]} 55. h3 {[%clk 0:00:03]}  Bf5 {[%clk 0:00:28]} 56. h4 {[%clk 0:00:04]}  h5 {[%clk 0:00:25]} 57. Nd1 {[%clk 0:00:04]}  Be6 {[%clk 0:00:20]} 58. Ne3 {[%clk 0:00:03]}  f2 {[%clk 0:00:20]} 59. Kd2 {[%clk 0:00:01]}  Bxc4 {[%clk 0:00:18]} 60. Kc3 {[%clk 0:00:02]}  f1=Q {[%clk 0:00:18]} 61. Nxf1 {[%clk 0:00:02]}  Bxf1 {[%clk 0:00:18]} 62. Kd2 {[%clk 0:00:03]}  Kd4 {[%clk 0:00:18]} 63. Ke1 {[%clk 0:00:03]}  Bc4 {[%clk 0:00:18]} 64. Kf2 {[%clk 0:00:04]}  Kc3 {[%clk 0:00:18]} 65. Kg3 {[%clk 0:00:05]}  Kb3 {[%clk 0:00:18]} 66. Kf4 {[%clk 0:00:06]}  Kxa3 {[%clk 0:00:18]} 67. Kg5 {[%clk 0:00:06]}  Be2 {[%clk 0:00:19]} 68. Kf4 {[%clk 0:00:07]}  Kb2 {[%clk 0:00:19]} 69. Ke3 {[%clk 0:00:08]}  Bg4 {[%clk 0:00:19]} 70. Kf4 {[%clk 0:00:09]}  a3 {[%clk 0:00:20]} 71. Kg5 {[%clk 0:00:10]}  a2 {[%clk 0:00:21]} 72. Kf4 {[%clk 0:00:11]}  a1=Q {[%clk 0:00:22]} 73. Kg3 {[%clk 0:00:12]}  Qa3+ {[%clk 0:00:21]} 74. Kf4 {[%clk 0:00:12]}  Kc3 {[%clk 0:00:21]} 75. Kg5 {[%clk 0:00:13]}  Kd4 {[%clk 0:00:21]} 76. Kf4 {[%clk 0:00:14]}  Qe3# {[%clk 0:00:14]} 0-1


[Site "https://www.chess.com"]

[Event "Titled Tuesday Blitz June 21 Late 2022"]
[White "Diaz Rosas, Julio Cesar"]
[Black "Carbone, Diego"]
[WhiteFideId "5105099"]
[BlackFideId "3002179"]
[WhiteElo "2278"]
[BlackElo "2199"]
[Result "1-0"]
[Round "11"]
[TimeControl "180+1"]
[Date "2022.06.21"]
[WhiteClock "0:00:07"]
[BlackClock "0:00:08"]

1. d4 {[%clk 0:03:00]}  Nf6 {[%clk 0:02:57]} 2. c4 {[%clk 0:03:00]}  g6 {[%clk 0:02:51]} 3. Nc3 {[%clk 0:02:58]}  d5 {[%clk 0:02:51]} 4. Nf3 {[%clk 0:02:55]}  Bg7 {[%clk 0:02:50]} 5. h4 {[%clk 0:02:55]}  dxc4 {[%clk 0:02:50]} 6. e4 {[%clk 0:02:52]}  c5 {[%clk 0:02:50]} 7. d5 {[%clk 0:02:52]}  b5 {[%clk 0:02:36]} 8. e5 {[%clk 0:02:39]}  Ng4 {[%clk 0:02:22]} 9. d6 {[%clk 0:02:38]}  Nc6 {[%clk 0:02:20]} 10. h5 {[%clk 0:02:32]}  Ncxe5 {[%clk 0:02:12]} 11. Nxb5 {[%clk 0:02:11]}  Rb8 {[%clk 0:02:08]} 12. Nc7+ {[%clk 0:02:08]}  Kf8 {[%clk 0:02:08]} 13. h6 {[%clk 0:01:33]}  Bf6 {[%clk 0:01:58]} 14. Nxe5 {[%clk 0:01:17]}  Bxe5 {[%clk 0:01:56]} 15. Bxc4 {[%clk 0:00:55]}  Qxd6 {[%clk 0:01:56]} 16. Qf3 {[%clk 0:00:53]}  Bf5 {[%clk 0:01:52]} 17. Nb5 {[%clk 0:00:49]}  Qd7 {[%clk 0:01:43]} 18. a4 {[%clk 0:00:43]}  a6 {[%clk 0:01:40]} 19. Nc3 {[%clk 0:00:43]}  Bd4 {[%clk 0:01:39]} 20. Be3 {[%clk 0:00:39]}  Rxb2 {[%clk 0:01:34]} 21. Bxd4 {[%clk 0:00:32]}  cxd4 {[%clk 0:01:35]} 22. O-O {[%clk 0:00:18]}  dxc3 {[%clk 0:01:30]} 23. Qxc3 {[%clk 0:00:19]}  f6 {[%clk 0:01:13]} 24. Qxb2 {[%clk 0:00:18]}  Qc7 {[%clk 0:01:13]} 25. g3 {[%clk 0:00:18]}  Qxc4 {[%clk 0:01:11]} 26. Rac1 {[%clk 0:00:17]}  Qxa4 {[%clk 0:01:07]} 27. Rfe1 {[%clk 0:00:14]}  Kf7 {[%clk 0:01:04]} 28. Rc7 {[%clk 0:00:14]}  Re8 {[%clk 0:01:01]} 29. Qb7 {[%clk 0:00:14]}  Ne5 {[%clk 0:00:58]} 30. Re3 {[%clk 0:00:13]}  Qd1+ {[%clk 0:00:54]} 31. Kg2 {[%clk 0:00:12]}  Qh5 {[%clk 0:00:55]} 32. f4 {[%clk 0:00:12]}  Qh3+ {[%clk 0:00:53]} 33. Kg1 {[%clk 0:00:12]}  Nd7 {[%clk 0:00:26]} 34. Qd5+ {[%clk 0:00:10]}  Kf8 {[%clk 0:00:26]} 35. Qd4 {[%clk 0:00:09]}  Rb8 {[%clk 0:00:21]} 36. Rc1 {[%clk 0:00:08]}  Qxh6 {[%clk 0:00:21]} 37. Qc3 {[%clk 0:00:07]}  Qh3 {[%clk 0:00:13]} 38. Qa3 {[%clk 0:00:07]}  Re8 {[%clk 0:00:12]} 39. Rce1 {[%clk 0:00:07]}  h5 {[%clk 0:00:08]} 40. Rxe7 {[%clk 0:00:07]}  Qxg3+ {[%clk 0:00:09]} 41. Qxg3 {[%clk 0:00:07]}  Rxe7 {[%clk 0:00:08]} 42. Qa3 {[%clk 0:00:07]} 1-0


[Site "https://www.chess.com"]

[Event "Titled Tuesday Blitz June 21 Late 2022"]
[White "Dobre, Claudiu-Cristian"]
[Black "Konaplev, Anton"]
[WhiteFideId "1211854"]
[BlackFideId "24165646"]
[WhiteElo "2207"]
[BlackElo "2208"]
[Result "0-1"]
[Round "11"]
[TimeControl "180+1"]
[Date "2022.06.21"]
[WhiteClock "0:00:01"]
[BlackClock "0:00:24"]

1. c4 {[%clk 0:03:00]}  e6 {[%clk 0:02:58]} 2. Nf3 {[%clk 0:02:57]}  d5 {[%clk 0:02:57]} 3. b3 {[%clk 0:02:56]}  Nf6 {[%clk 0:02:53]} 4. Bb2 {[%clk 0:02:56]}  Be7 {[%clk 0:02:53]} 5. g3 {[%clk 0:02:56]}  c5 {[%clk 0:02:52]} 6. e3 {[%clk 0:02:54]}  Nc6 {[%clk 0:02:51]} 7. Bg2 {[%clk 0:02:52]}  O-O {[%clk 0:02:51]} 8. O-O {[%clk 0:02:52]}  d4 {[%clk 0:02:49]} 9. exd4 {[%clk 0:02:52]}  cxd4 {[%clk 0:02:49]} 10. Re1 {[%clk 0:02:52]}  a5 {[%clk 0:02:47]} 11. Na3 {[%clk 0:02:51]}  Nd7 {[%clk 0:02:42]} 12. Nb5 {[%clk 0:02:49]}  e5 {[%clk 0:02:41]} 13. a3 {[%clk 0:02:26]}  f6 {[%clk 0:02:36]} 14. d3 {[%clk 0:02:24]}  Nc5 {[%clk 0:02:31]} 15. Qc2 {[%clk 0:01:50]}  Bf5 {[%clk 0:02:24]} 16. Rad1 {[%clk 0:01:49]}  h6 {[%clk 0:02:15]} 17. Re2 {[%clk 0:01:38]}  Qd7 {[%clk 0:02:06]} 18. Ne1 {[%clk 0:01:27]}  Kh8 {[%clk 0:02:02]} 19. Bc1 {[%clk 0:01:25]}  Rad8 {[%clk 0:01:58]} 20. f4 {[%clk 0:01:04]}  Bg4 {[%clk 0:01:40]} 21. Bf3 {[%clk 0:01:03]}  Bxf3 {[%clk 0:01:40]} 22. Nxf3 {[%clk 0:01:03]}  Qg4 {[%clk 0:01:38]} 23. Rf2 {[%clk 0:01:02]}  e4 {[%clk 0:01:26]} 24. dxe4 {[%clk 0:01:01]}  d3 {[%clk 0:01:26]} 25. Qb2 {[%clk 0:00:49]}  Nxe4 {[%clk 0:01:23]} 26. Be3 {[%clk 0:00:40]}  Nxf2 {[%clk 0:01:22]} 27. Kxf2 {[%clk 0:00:40]}  Ne5 {[%clk 0:01:06]} 28. fxe5 {[%clk 0:00:14]}  fxe5 {[%clk 0:01:03]} 29. Kg1 {[%clk 0:00:14]}  Qxf3 {[%clk 0:00:57]} 30. Qd2 {[%clk 0:00:14]}  Qe2 {[%clk 0:00:40]} 31. Nc3 {[%clk 0:00:12]}  Qxd2 {[%clk 0:00:37]} 32. Rxd2 {[%clk 0:00:12]}  Bxa3 {[%clk 0:00:35]} 33. Nd5 {[%clk 0:00:11]}  e4 {[%clk 0:00:35]} 34. Bd4 {[%clk 0:00:11]}  Kh7 {[%clk 0:00:32]} 35. Kg2 {[%clk 0:00:09]}  b5 {[%clk 0:00:26]} 36. Rd1 {[%clk 0:00:09]}  bxc4 {[%clk 0:00:26]} 37. bxc4 {[%clk 0:00:09]}  Rc8 {[%clk 0:00:26]} 38. Nb6 {[%clk 0:00:08]}  Rcd8 {[%clk 0:00:26]} 39. Nd5 {[%clk 0:00:09]}  Rf7 {[%clk 0:00:26]} 40. Re1 {[%clk 0:00:08]}  Re8 {[%clk 0:00:26]} 41. Bc3 {[%clk 0:00:05]}  a4 {[%clk 0:00:25]} 42. Ne3 {[%clk 0:00:02]}  Bc5 {[%clk 0:00:25]} 43. Bd2 {[%clk 0:00:01]}  Bd4 {[%clk 0:00:24]} 44. Rb1 {[%clk 0:00:01]}  a3 {[%clk 0:00:24]} 0-1


[Site "https://www.chess.com"]

[Event "Titled Tuesday Blitz June 21 Late 2022"]
[White "Fishbein, Alexander"]
[Black "Semenenko, Dmytry"]
[WhiteFideId "2000377"]
[BlackFideId "14118645"]
[WhiteElo "2442"]
[BlackElo "2113"]
[Result "1-0"]
[Round "11"]
[TimeControl "180+1"]
[Date "2022.06.21"]
[WhiteClock "0:01:37"]
[BlackClock "0:01:31"]

1. e4 {[%clk 0:03:00]}  Nf6 {[%clk 0:02:59]} 2. d3 {[%clk 0:02:55]}  d5 {[%clk 0:02:59]} 3. e5 {[%clk 0:02:55]}  Nfd7 {[%clk 0:02:59]} 4. f4 {[%clk 0:02:55]}  e6 {[%clk 0:02:59]} 5. Nf3 {[%clk 0:02:55]}  c5 {[%clk 0:03:00]} 6. g3 {[%clk 0:02:54]}  Nc6 {[%clk 0:03:00]} 7. Bg2 {[%clk 0:02:54]}  f6 {[%clk 0:02:52]} 8. exf6 {[%clk 0:02:52]}  Nxf6 {[%clk 0:02:52]} 9. O-O {[%clk 0:02:53]}  Bd6 {[%clk 0:02:51]} 10. Re1 {[%clk 0:02:53]}  O-O {[%clk 0:02:51]} 11. Nc3 {[%clk 0:02:53]}  Re8 {[%clk 0:02:43]} 12. b3 {[%clk 0:02:53]}  e5 {[%clk 0:02:39]} 13. fxe5 {[%clk 0:02:51]}  Nxe5 {[%clk 0:02:39]} 14. Bb2 {[%clk 0:02:50]}  d4 {[%clk 0:02:35]} 15. Ne4 {[%clk 0:02:39]}  Nxe4 {[%clk 0:02:35]} 16. Rxe4 {[%clk 0:02:38]}  Ng4 {[%clk 0:02:35]} 17. Ng5 {[%clk 0:02:12]}  Ne3 {[%clk 0:02:19]} 18. Qh5 {[%clk 0:02:02]}  Bf5 {[%clk 0:02:16]} 19. Rxe3 {[%clk 0:02:02]}  Rxe3 {[%clk 0:02:09]} 20. Bd5+ {[%clk 0:02:01]}  Be6 {[%clk 0:01:54]} 21. Qxh7+ {[%clk 0:01:59]}  Kf8 {[%clk 0:01:53]} 22. Nxe6+ {[%clk 0:01:56]}  Rxe6 {[%clk 0:01:52]} 23. Bxe6 {[%clk 0:01:56]}  Ke7 {[%clk 0:01:44]} 24. Re1 {[%clk 0:01:54]}  Qf8 {[%clk 0:01:44]} 25. Qh4+ {[%clk 0:01:52]}  Qf6 {[%clk 0:01:44]} 26. Bc4+ {[%clk 0:01:50]}  Kd7 {[%clk 0:01:43]} 27. Qxf6 {[%clk 0:01:49]}  gxf6 {[%clk 0:01:44]} 28. Bc1 {[%clk 0:01:50]}  a6 {[%clk 0:01:43]} 29. a4 {[%clk 0:01:49]}  Rh8 {[%clk 0:01:41]} 30. Bf4 {[%clk 0:01:48]}  Be7 {[%clk 0:01:40]} 31. Be6+ {[%clk 0:01:47]}  Kc6 {[%clk 0:01:39]} 32. Bf5 {[%clk 0:01:46]}  Bd8 {[%clk 0:01:37]} 33. Re6+ {[%clk 0:01:45]}  Kd7 {[%clk 0:01:34]} 34. Rxf6+ {[%clk 0:01:45]}  Ke7 {[%clk 0:01:32]} 35. Re6+ {[%clk 0:01:45]}  Kf7 {[%clk 0:01:32]} 36. Re1 {[%clk 0:01:43]}  Bf6 {[%clk 0:01:32]} 37. Be6+ {[%clk 0:01:38]}  Kg6 {[%clk 0:01:31]} 38. Bd5 {[%clk 0:01:38]}  Rd8 {[%clk 0:01:31]} 39. Bxb7 {[%clk 0:01:37]}  Rd7 {[%clk 0:01:31]} 40. Bxa6 {[%clk 0:01:37]} 1-0


[Site "https://www.chess.com"]

[Event "Titled Tuesday Blitz June 21 Late 2022"]
[White "Golubev, Mikhail"]
[Black "Domingo Nunez, Alejandro"]
[WhiteFideId "14100983"]
[BlackFideId "22245561"]
[WhiteElo "2374"]
[BlackElo "2215"]
[Result "0-1"]
[Round "11"]
[TimeControl "180+1"]
[Date "2022.06.21"]
[WhiteClock "0:00:03"]
[BlackClock "0:00:19"]

1. e4 {[%clk 0:03:00]}  g6 {[%clk 0:03:00]} 2. d4 {[%clk 0:03:00]}  Bg7 {[%clk 0:03:01]} 3. c4 {[%clk 0:03:00]}  c6 {[%clk 0:03:02]} 4. Nc3 {[%clk 0:02:57]}  d6 {[%clk 0:03:01]} 5. f4 {[%clk 0:02:52]}  e5 {[%clk 0:02:59]} 6. Nf3 {[%clk 0:02:46]}  exd4 {[%clk 0:02:57]} 7. Nxd4 {[%clk 0:02:45]}  Nf6 {[%clk 0:02:57]} 8. Be2 {[%clk 0:02:40]}  O-O {[%clk 0:02:51]} 9. Be3 {[%clk 0:02:15]}  Re8 {[%clk 0:02:47]} 10. Bf3 {[%clk 0:01:59]}  Nxe4 {[%clk 0:02:42]} 11. Bxe4 {[%clk 0:01:59]}  f5 {[%clk 0:02:26]} 12. O-O {[%clk 0:01:58]}  fxe4 {[%clk 0:02:25]} 13. f5 {[%clk 0:01:58]}  c5 {[%clk 0:02:00]} 14. Ne6 {[%clk 0:01:55]}  Bxe6 {[%clk 0:02:00]} 15. fxe6 {[%clk 0:01:55]}  Nc6 {[%clk 0:02:01]} 16. Qd5 {[%clk 0:01:31]}  Qe7 {[%clk 0:01:46]} 17. Nb5 {[%clk 0:01:06]}  Be5 {[%clk 0:00:58]} 18. Rf7 {[%clk 0:00:27]}  Qxe6 {[%clk 0:00:44]} 19. Raf1 {[%clk 0:00:25]}  Qxd5 {[%clk 0:00:29]} 20. cxd5 {[%clk 0:00:25]}  Nb4 {[%clk 0:00:29]} 21. Nc7 {[%clk 0:00:20]}  Rf8 {[%clk 0:00:29]} 22. R7f2 {[%clk 0:00:07]}  Rxf2 {[%clk 0:00:22]} 23. Rxf2 {[%clk 0:00:08]}  Rc8 {[%clk 0:00:22]} 24. Ne6 {[%clk 0:00:09]}  Nxd5 {[%clk 0:00:22]} 25. Bh6 {[%clk 0:00:08]}  Bd4 {[%clk 0:00:20]} 26. Nxd4 {[%clk 0:00:07]}  cxd4 {[%clk 0:00:21]} 27. g4 {[%clk 0:00:03]}  e3 {[%clk 0:00:19]} 0-1


[Site "https://www.chess.com"]

[Event "Titled Tuesday Blitz June 21 Late 2022"]
[White "Hansen, Eric"]
[Black "Clarke, Brandon G I"]
[WhiteFideId "2606771"]
[BlackFideId "400319"]
[WhiteElo "2568"]
[BlackElo "2414"]
[Result "0-1"]
[Round "11"]
[TimeControl "180+1"]
[Date "2022.06.21"]
[WhiteClock "0:00:13"]
[BlackClock "0:02:17"]

1. e4 {[%clk 0:03:00]}  e6 {[%clk 0:03:00]} 2. d4 {[%clk 0:02:56]}  d5 {[%clk 0:03:00]} 3. Nc3 {[%clk 0:02:57]}  Nf6 {[%clk 0:03:00]} 4. Bg5 {[%clk 0:02:56]}  dxe4 {[%clk 0:03:01]} 5. Nxe4 {[%clk 0:02:56]}  Be7 {[%clk 0:03:01]} 6. Bxf6 {[%clk 0:02:57]}  gxf6 {[%clk 0:03:01]} 7. Nf3 {[%clk 0:02:57]}  f5 {[%clk 0:02:59]} 8. Nc3 {[%clk 0:02:57]}  a6 {[%clk 0:02:58]} 9. g3 {[%clk 0:02:51]}  b5 {[%clk 0:02:58]} 10. Bg2 {[%clk 0:02:52]}  Bb7 {[%clk 0:02:58]} 11. O-O {[%clk 0:02:51]}  O-O {[%clk 0:02:58]} 12. Ne5 {[%clk 0:02:27]}  Bxg2 {[%clk 0:02:57]} 13. Kxg2 {[%clk 0:02:28]}  b4 {[%clk 0:02:56]} 14. Na4 {[%clk 0:02:26]}  Qd5+ {[%clk 0:02:56]} 15. Qf3 {[%clk 0:02:26]}  Qxf3+ {[%clk 0:02:56]} 16. Nxf3 {[%clk 0:02:23]}  Rd8 {[%clk 0:02:54]} 17. Rfd1 {[%clk 0:02:19]}  Nd7 {[%clk 0:02:53]} 18. c4 {[%clk 0:02:18]}  bxc3 {[%clk 0:02:52]} 19. Nxc3 {[%clk 0:02:18]}  Nb6 {[%clk 0:02:52]} 20. Ne5 {[%clk 0:02:17]}  Bf6 {[%clk 0:02:43]} 21. Rac1 {[%clk 0:02:11]}  Bxe5 {[%clk 0:02:34]} 22. dxe5 {[%clk 0:02:11]}  Nc4 {[%clk 0:02:34]} 23. Rxd8+ {[%clk 0:02:07]}  Rxd8 {[%clk 0:02:35]} 24. Na4 {[%clk 0:02:07]}  Nxe5 {[%clk 0:02:33]} 25. Rxc7 {[%clk 0:02:08]}  Rd2 {[%clk 0:02:32]} 26. Rc3 {[%clk 0:00:56]}  Nd3 {[%clk 0:02:24]} 27. Kf3 {[%clk 0:00:42]}  Nxf2 {[%clk 0:02:22]} 28. Rc6 {[%clk 0:00:37]}  Ng4 {[%clk 0:02:16]} 29. Kf4 {[%clk 0:00:13]}  Rf2+ {[%clk 0:02:16]} 30. Kg5 {[%clk 0:00:13]}  h6+ {[%clk 0:02:17]} 0-1


[Site "https://www.chess.com"]

[Event "Titled Tuesday Blitz June 21 Late 2022"]
[White "Howell, David W L"]
[Black "Jiganchine, Roman"]
[WhiteFideId "410608"]
[BlackFideId "2603667"]
[WhiteElo "2559"]
[BlackElo "2252"]
[Result "1-0"]
[Round "11"]
[TimeControl "180+1"]
[Date "2022.06.22"]
[WhiteClock "0:00:12"]
[BlackClock "0:00:08"]

1. e4 {[%clk 0:03:00]}  c6 {[%clk 0:02:59]} 2. Qf3 {[%clk 0:02:55]}  d5 {[%clk 0:02:55]} 3. Nc3 {[%clk 0:02:56]}  Nf6 {[%clk 0:02:47]} 4. e5 {[%clk 0:02:50]}  Nfd7 {[%clk 0:02:46]} 5. d4 {[%clk 0:02:49]}  e6 {[%clk 0:02:46]} 6. Qg3 {[%clk 0:02:42]}  a6 {[%clk 0:02:43]} 7. Nf3 {[%clk 0:02:33]}  h6 {[%clk 0:02:40]} 8. h4 {[%clk 0:02:25]}  c5 {[%clk 0:02:39]} 9. dxc5 {[%clk 0:02:25]}  Nc6 {[%clk 0:02:35]} 10. h5 {[%clk 0:02:19]}  Nxc5 {[%clk 0:02:32]} 11. Rh4 {[%clk 0:02:14]}  b6 {[%clk 0:02:06]} 12. Be3 {[%clk 0:02:08]}  Bb7 {[%clk 0:02:06]} 13. O-O-O {[%clk 0:02:05]}  Qc7 {[%clk 0:02:03]} 14. Kb1 {[%clk 0:02:00]}  O-O-O {[%clk 0:02:02]} 15. Be2 {[%clk 0:01:52]}  Kb8 {[%clk 0:02:00]} 16. a3 {[%clk 0:01:50]}  Nd7 {[%clk 0:01:49]} 17. Bf4 {[%clk 0:01:41]}  Ka7 {[%clk 0:01:42]} 18. Bd3 {[%clk 0:01:38]}  Nc5 {[%clk 0:01:41]} 19. Be3 {[%clk 0:01:34]}  Nxd3 {[%clk 0:01:40]} 20. Rxd3 {[%clk 0:01:30]}  Na5 {[%clk 0:01:39]} 21. Ra4 {[%clk 0:01:28]}  Kb8 {[%clk 0:01:25]} 22. Rf4 {[%clk 0:01:16]}  Nc4 {[%clk 0:01:25]} 23. Bc1 {[%clk 0:01:10]}  Rg8 {[%clk 0:01:18]} 24. Rg4 {[%clk 0:01:08]}  b5 {[%clk 0:01:15]} 25. Bxh6 {[%clk 0:01:03]}  Bxa3 {[%clk 0:01:00]} 26. bxa3 {[%clk 0:00:58]}  Nxa3+ {[%clk 0:00:59]} 27. Kc1 {[%clk 0:00:47]}  Nc4 {[%clk 0:00:49]} 28. Bd2 {[%clk 0:00:34]}  b4 {[%clk 0:00:39]} 29. Nb1 {[%clk 0:00:32]}  b3 {[%clk 0:00:31]} 30. Rxb3 {[%clk 0:00:30]}  Rc8 {[%clk 0:00:22]} 31. Bc3 {[%clk 0:00:20]}  Qe7 {[%clk 0:00:20]} 32. Nd4 {[%clk 0:00:18]}  Ka8 {[%clk 0:00:20]} 33. Rxg7 {[%clk 0:00:17]}  Rxg7 {[%clk 0:00:20]} 34. Qxg7 {[%clk 0:00:18]}  Qh4 {[%clk 0:00:20]} 35. Nf3 {[%clk 0:00:13]}  Qh1+ {[%clk 0:00:19]} 36. Be1 {[%clk 0:00:13]}  Qf1 {[%clk 0:00:16]} 37. Qxf7 {[%clk 0:00:12]}  Bc6 {[%clk 0:00:16]} 38. Qxe6 {[%clk 0:00:11]}  Rc7 {[%clk 0:00:13]} 39. Qg8+ {[%clk 0:00:12]}  Ka7 {[%clk 0:00:08]} 40. Qb8# {[%clk 0:00:12]} 1-0


[Site "https://www.chess.com"]

[Event "Titled Tuesday Blitz June 21 Late 2022"]
[White "Ibarra Jerez, Jose Carlos"]
[Black "Abarca Gonzalez, Nicolas"]
[WhiteFideId "2226332"]
[BlackFideId "3409422"]
[WhiteElo "2628"]
[BlackElo "2504"]
[Result "0-1"]
[Round "11"]
[TimeControl "180+1"]
[Date "2022.06.21"]
[WhiteClock "0:00:02"]
[BlackClock "0:00:09"]

1. c4 {[%clk 0:03:00]}  c5 {[%clk 0:02:58]} 2. g3 {[%clk 0:03:01]}  Nc6 {[%clk 0:02:58]} 3. Bg2 {[%clk 0:03:01]}  g6 {[%clk 0:02:59]} 4. Nc3 {[%clk 0:03:00]}  Bg7 {[%clk 0:02:59]} 5. d3 {[%clk 0:03:00]}  Nh6 {[%clk 0:02:59]} 6. h4 {[%clk 0:02:57]}  Nf5 {[%clk 0:02:58]} 7. h5 {[%clk 0:02:57]}  d6 {[%clk 0:02:42]} 8. h6 {[%clk 0:02:56]}  Bxc3+ {[%clk 0:02:38]} 9. bxc3 {[%clk 0:02:55]}  e6 {[%clk 0:02:25]} 10. g4 {[%clk 0:02:40]}  Nfe7 {[%clk 0:02:24]} 11. Bg5 {[%clk 0:02:40]}  O-O {[%clk 0:02:20]} 12. Qd2 {[%clk 0:02:34]}  f6 {[%clk 0:02:19]} 13. Be3 {[%clk 0:02:32]}  Qa5 {[%clk 0:02:08]} 14. g5 {[%clk 0:02:23]}  Nf5 {[%clk 0:02:04]} 15. gxf6 {[%clk 0:02:18]}  Nxe3 {[%clk 0:02:04]} 16. fxe3 {[%clk 0:02:17]}  Rxf6 {[%clk 0:02:04]} 17. Nf3 {[%clk 0:02:16]}  Bd7 {[%clk 0:02:03]} 18. O-O {[%clk 0:02:14]}  Raf8 {[%clk 0:01:42]} 19. e4 {[%clk 0:02:12]}  e5 {[%clk 0:01:41]} 20. Ng5 {[%clk 0:02:00]}  Qd8 {[%clk 0:01:36]} 21. Rxf6 {[%clk 0:01:58]}  Rxf6 {[%clk 0:01:37]} 22. Rf1 {[%clk 0:01:48]}  Rxf1+ {[%clk 0:01:35]} 23. Bxf1 {[%clk 0:01:49]}  Qf8 {[%clk 0:01:34]} 24. Bh3 {[%clk 0:01:37]}  Bxh3 {[%clk 0:01:25]} 25. Nxh3 {[%clk 0:01:36]}  Qf6 {[%clk 0:01:25]} 26. Qe3 {[%clk 0:01:14]}  Nd8 {[%clk 0:01:25]} 27. Nf2 {[%clk 0:01:10]}  Kf7 {[%clk 0:01:15]} 28. Ng4 {[%clk 0:01:09]}  Qf4 {[%clk 0:01:16]} 29. Qxf4+ {[%clk 0:00:55]}  exf4 {[%clk 0:01:17]} 30. e3 {[%clk 0:00:55]}  Ne6 {[%clk 0:01:10]} 31. Kf2 {[%clk 0:00:50]}  g5 {[%clk 0:01:10]} 32. e5 {[%clk 0:00:43]}  dxe5 {[%clk 0:01:06]} 33. Nxe5+ {[%clk 0:00:43]}  Kf6 {[%clk 0:01:07]} 34. d4 {[%clk 0:00:42]}  cxd4 {[%clk 0:00:59]} 35. cxd4 {[%clk 0:00:38]}  Kf5 {[%clk 0:00:49]} 36. Kf3 {[%clk 0:00:36]}  g4+ {[%clk 0:00:40]} 37. Kf2 {[%clk 0:00:27]}  g3+ {[%clk 0:00:26]} 38. Kg2 {[%clk 0:00:26]}  fxe3 {[%clk 0:00:25]} 39. Kxg3 {[%clk 0:00:17]}  Nxd4 {[%clk 0:00:25]} 40. Nf7 {[%clk 0:00:17]}  Ke4 {[%clk 0:00:14]} 41. Kg2 {[%clk 0:00:08]}  Kd3 {[%clk 0:00:13]} 42. Ne5+ {[%clk 0:00:05]}  Kd2 {[%clk 0:00:12]} 43. c5 {[%clk 0:00:03]}  e2 {[%clk 0:00:10]} 44. Nc4+ {[%clk 0:00:03]}  Kd3 {[%clk 0:00:09]} 45. Nb2+ {[%clk 0:00:02]}  Kc2 {[%clk 0:00:10]} 46. Kf2 {[%clk 0:00:01]}  Kxb2 {[%clk 0:00:09]} 47. c6 {[%clk 0:00:02]}  bxc6 {[%clk 0:00:09]} 0-1


[Site "https://www.chess.com"]